bitfinex/quotes_ETHUSD_20240716
["timestamp","ask_amount","ask_price","bid_price","bid_amount"]
[1721168571984,2.495,3430.8,3429.8,7.37]
[1721168572156,2.495,3430.8,3429.3,2.916]
[1721168572157,2.91499,3430.6,3429.3,2.916]
[1721168572356,5.3442,3431.1,3430.2,2.91522]
[1721168572357,2.91474,3430.9,3430.2,2.91522]
[1721168572662,2.91474,3430.9,3430.0,2.91537]
[1721168572663,2.91483,3430.8,3430.0,2.91537]
[1721168572850,2.91483,3430.8,3430.2,2.91528]
[1721168573056,5.3442,3431.1,3430.3,2.91518]
[1721168573057,8.25874,3431.1,3430.3,2.91518]
[1721168573253,2.9146,3431.0,3430.3,2.91518]
[1721168573583,9.625551,3431.1,3430.3,2.91518]
[1721168573584,6.711011,3431.1,3430.3,2.91518]
[1721168573895,9.625541,3431.1,3430.4,2.91509]
[1721168574191,2.9146,3431.0,3430.4,2.91509]
[1721168577817,4.366811,3431.1,3430.4,2.91509]
[1721168577994,4.366811,3431.1,3430.5,2.91502]
[1721168578314,7.281341,3431.1,3430.5,2.91502]
[1721168578529,5.91453,3431.1,3430.5,2.91502]
[1721168580017,5.91453,3431.1,3430.3,2.91518]
[1721168580204,2.91488,3430.7,3430.0,2.9154]
[1721168580385,2.91488,3430.7,3429.9,2.91548]
[1721168580732,2.91488,3430.7,3429.8,7.37]
[1721168580733,2.91496,3430.6,3429.8,7.37]
[1721168580886,2.91504,3430.5,3429.7,2.91565]
[1721168581509,2.9152,3430.3,3429.5,2.91581]
[1721168581720,2.91502,3430.5,3429.9,2.91548]
[1721168582230,3.98629,3430.5,3429.7,2.91563]
[1721168582733,2.91469,3430.9,3430.1,2.91529]
[1721168582879,6.51413792,3431.1,3429.8,2.91561]
[1721168583079,3.0,3431.1,3430.4,2.91506]
[1721168583314,2.91462,3431.0,3430.2,2.91523]
[1721168583545,3.51423792,3431.0,3430.2,2.91523]
[1721168583707,1.32089726,3430.9,3430.2,2.91523]
[1721168583912,1.32089726,3430.9,3429.9,0.55]
[1721168583913,2.91484,3430.8,3430.1,2.91536]
[1721168584094,2.91485,3430.7,3429.9,2.9155]
[1721168584294,2.91485,3430.7,3430.0,2.91539]
[1721168584903,2.91485,3430.7,3429.8,2.91556]
[1721168584904,2.91505,3430.5,3429.8,2.91556]
[1721168585333,2.91511,3430.4,3429.6,2.91574]
[1721168585512,2.91511,3430.4,3429.8,2.91561]
[1721168585709,3.4712983,3430.4,3429.8,2.91561]
[1721168585918,0.5561883,3430.4,3429.8,2.91554]
[1721168586240,2.91525,3430.3,3429.5,2.91581]
[1721168586544,0.59961792,3430.4,3429.7,2.91564]
[1721168586829,3.6061557,3430.4,3429.7,2.91564]
[1721168586994,3.51472792,3430.4,3429.7,5.83128]
[1721168587193,0.59961792,3430.4,3429.8,2.91561]
[1721168587437,0.59961792,3430.4,3430.0,2.91543]
[1721168587597,0.99089926,3430.6,3430.0,2.91543]
[1721168587598,0.6910903,3430.5,3430.0,2.91543]
[1721168587944,0.59961792,3430.5,3430.0,2.91543]
[1721168588529,0.69106647,3430.4,3430.0,2.91543]
[1721168588720,0.59961792,3430.4,3430.0,2.91543]
[1721168588919,0.59961792,3430.4,3430.0,2.91545]
[1721168589141,0.6911149,3430.4,3430.0,2.91545]
[1721168589296,0.09149698,3430.3,3429.7,2.91566]
[1721168589499,0.6911149,3430.3,3429.9,2.91551]
[1721168589699,0.69115755,3430.2,3429.7,2.91566]
[1721168589935,0.69115755,3430.2,3429.7,5.83129]
[1721168590114,0.69115755,3430.2,3429.8,2.91558]
[1721168590632,0.59961792,3430.2,3429.9,2.91546]
[1721168591634,0.59961792,3430.2,3429.7,2.91563]
[1721168591839,0.50652947,3430.4,3430.0,2.9154]
[1721168591840,0.59961792,3430.4,3430.0,2.9154]
[1721168594242,0.59961792,3430.4,3430.3,2.91519]
[1721168594607,0.59961792,3430.5,3430.4,5.83022]
[1721168594845,0.59961792,3430.9,3430.6,2.91494]
[1721168595040,0.69107751,3431.0,3430.8,2.91477]
[1721168595240,0.59961792,3431.0,3430.8,2.91477]
[1721168595404,1.19923584,3431.3,3430.8,2.91477]
[1721168595405,0.59961792,3430.9,3430.8,2.91477]
[1721168595600,0.69106076,3430.9,3430.6,2.91486]
[1721168595838,0.59961792,3430.9,3430.6,2.91486]
[1721168596148,0.59961792,3430.9,3430.8,2.91477]
[1721168596437,0.69108036,3430.9,3430.1,5.263]
[1721168596635,0.60577131,3430.7,3430.4,2.9151]
[1721168597041,0.09151225,3430.6,3430.4,2.9151]
[1721168597213,0.09151225,3430.6,3430.2,2.91525]
[1721168597214,0.60577131,3430.6,3430.2,2.91525]
[1721168597415,0.6972998,3430.5,3430.2,2.91525]
[1721168597744,3.69373584,3430.8,3430.0,7.37]
[1721168597745,0.60577131,3430.3,3430.0,7.37]
[1721168597917,0.09152849,3430.2,3430.0,10.28543]
[1721168598119,0.09152849,3430.2,3430.0,2.91543]
[1721168598120,0.60577131,3430.2,3430.0,2.91543]
[1721168598631,0.60577131,3430.2,3429.9,5.83092]
[1721168598953,0.60577131,3430.2,3430.0,2.91544]
[1721168599146,0.89942688,3430.2,3430.0,2.91544]
[1721168599331,0.99107335,3430.2,3430.0,2.91544]
[1721168599506,0.69732933,3430.1,3430.0,2.91544]
[1721168599703,0.69732933,3430.1,3429.8,2.91554]
[1721168600008,0.69732933,3430.0,3429.7,2.91566]
[1721168600206,0.60568286,3430.0,3429.7,2.91566]
[1721168600540,2.38722411,3429.9,3429.5,2.9158]
[1721168600731,0.69731004,3429.8,3429.5,2.9158]
[1721168600942,0.09162718,3429.7,3429.5,2.9158]
[1721168601171,0.69731004,3429.7,3429.5,2.9158]
[1721168601444,0.89942688,3429.6,3429.4,7.37]
[1721168601610,0.99109799,3429.6,3429.4,7.37]
[1721168601813,0.09167111,3429.5,3429.4,7.37]
[1721168602043,0.89942688,3429.6,3429.2,2.91612]
[1721168602244,0.60541829,3429.4,3428.8,7.37]
[1721168602407,0.09171005,3429.3,3429.0,2.9163]
[1721168602717,0.60541829,3429.4,3429.1,2.91621]
[1721168603127,0.60541829,3429.4,3429.2,2.91612]
[1721168603434,0.60541829,3429.6,3429.2,2.91612]
[1721168603756,0.60541829,3429.7,3429.4,2.91594]
[1721168604045,0.09160367,3429.6,3429.4,2.91594]
[1721168604245,0.60541829,3429.7,3429.4,2.91594]
[1721168604624,0.60541829,3429.7,3429.4,3.6174264]
[1721168604837,0.60541829,3429.7,3429.6,2.91579]
[1721168605035,0.60541829,3429.7,3429.4,3.6174264]
[1721168605036,0.69700816,3429.7,3429.5,2.91587]
[1721168605350,0.60541829,3429.7,3429.5,2.91587]
[1721168605647,0.60541829,3429.7,3429.6,2.91579]
[1721168605819,0.60541829,3429.9,3429.7,2.9157]
[1721168606023,0.09155405,3429.8,3429.7,2.9157]
[1721168606329,0.60541829,3430.2,3430.0,2.91538]
[1721168606514,0.60541829,3430.4,3430.3,2.91519]
[1721168606820,0.60541829,3430.4,3430.2,2.91528]
[1721168606821,0.09143095,3430.4,3430.2,2.91528]
[1721168607031,0.09143095,3430.4,3430.3,2.91519]
[1721168607409,0.60541829,3430.4,3430.1,3.206868]
[1721168607634,0.60541829,3430.5,3430.1,2.91533]
[1721168607843,0.0914698,3430.4,3430.1,2.91533]
[1721168608010,0.60541829,3430.4,3430.2,2.91527]
[1721168608206,0.60541829,3430.5,3430.2,2.91527]
[1721168608441,0.69688966,3430.4,3429.9,2.91553]
[1721168608644,0.60541829,3430.2,3429.9,2.91553]
[1721168609148,0.69695474,3430.1,3429.9,2.91553]
[1721168609357,0.09154367,3430.0,3429.7,2.9157]
[1721168609561,0.60541829,3430.0,3429.7,2.9157]
[1721168610019,0.60541829,3430.1,3429.8,2.91559]
[1721168610350,0.69697026,3430.0,3429.8,2.91559]
[1721168610554,0.60541829,3430.0,3429.7,2.9157]
[1721168610717,0.09157759,3429.9,3429.7,2.9157]
[1721168610914,0.60541829,3430.0,3429.7,2.9157]
[1721168611136,0.09159113,3429.9,3429.5,7.37]
[1721168611426,0.60541829,3429.6,3429.5,7.37]
[1721168611634,0.60541829,3429.6,3429.2,2.91611]
[1721168611635,0.99103324,3429.6,3429.2,2.91611]
[1721168611859,0.60532576,3429.3,3429.2,2.91611]
[1721168612268,0.69693212,3429.3,3429.2,2.91611]
[1721168612419,0.60532576,3429.3,3429.2,2.91611]
[1721168612751,0.69703153,3429.3,3429.2,2.91611]
[1721168613859,0.69703153,3429.3,3428.9,7.37]
[1721168614069,0.60530377,3429.2,3428.9,7.37]
[1721168614224,0.60530377,3429.2,3428.9,10.28638]
[1721168614427,0.0917285,3429.1,3428.9,10.28638]
[1721168614732,0.60530377,3429.2,3428.9,10.28638]
[1721168614942,0.09173607,3429.1,3429.0,2.9163]
[1721168615141,0.60530377,3429.2,3428.9,10.28638]
[1721168615361,0.09172364,3429.1,3428.9,10.28638]
[1721168615564,0.60530377,3429.2,3428.9,10.28638]
[1721168615759,0.0917302,3429.1,3429.0,2.9163]
[1721168616125,0.0917302,3429.1,3428.9,7.37]
[1721168616446,0.69704375,3429.1,3428.9,7.37]
[1721168616626,0.60530377,3429.2,3429.0,2.91624]
[1721168616828,0.69703786,3429.1,3429.0,2.91624]
[1721168617036,0.60530377,3429.1,3429.0,2.91624]
[1721168617447,0.69703786,3429.1,3429.0,2.91624]
[1721168617649,0.6970448,3429.1,3429.0,2.91624]
[1721168617861,2.91652,3428.8,3428.4,7.37]
[1721168618030,0.60523671,3428.6,3428.2,2.91697]
[1721168618244,0.09180885,3428.5,3428.2,2.91697]
[1721168618443,0.60523671,3428.6,3428.4,2.91679]
[1721168618655,0.69706281,3428.5,3427.9,10.28717]
[1721168618883,0.09183119,3428.4,3428.1,2.917]
[1721168619172,0.60523671,3428.5,3427.6,2.91744]
[1721168619173,2.9169,3428.3,3427.6,2.91744]
[1721168619376,0.09183476,3428.2,3427.8,2.91725]
[1721168619686,0.90785507,3428.4,3427.6,0.3825295]
[1721168619687,0.60523671,3428.4,3428.1,2.917]
[1721168620247,0.60523671,3428.5,3428.1,2.917]
[1721168620546,0.60523671,3428.6,3428.1,2.917]
[1721168620750,0.90785507,3428.7,3428.1,2.917]
[1721168620751,0.69698702,3428.5,3428.1,2.917]
[1721168620951,0.60523671,3428.5,3428.1,2.917]
[1721168621171,0.60523671,3428.6,3428.1,2.917]
[1721168621378,0.09173469,3428.5,3428.1,2.917]
[1721168621574,0.90785507,3428.7,3428.4,2.91674]
[1721168621575,0.60523671,3428.7,3428.4,2.91674]
[1721168621776,0.60523671,3428.8,3428.4,2.91674]
[1721168622283,0.60523671,3428.9,3428.4,2.91674]
[1721168622584,0.09166241,3428.8,3428.5,2.9167]
[1721168622754,0.69690974,3428.8,3428.5,2.9167]
[1721168623079,0.60523671,3428.8,3428.5,2.9167]
[1721168623282,0.60523671,3428.9,3428.5,2.9167]
[1721168623486,0.60523671,3429.0,3428.6,2.91663]
[1721168623657,0.60523671,3429.2,3428.8,2.9164]
[1721168623844,0.60523671,3429.2,3428.9,2.91637]
[1721168624281,0.60523671,3429.3,3428.9,2.91637]
[1721168624850,0.69684274,3429.2,3428.9,2.91637]
[1721168625195,0.09160794,3429.1,3428.7,2.9165]
[1721168625389,0.60523671,3429.1,3428.7,2.9165]
[1721168625692,0.09163038,3429.0,3428.9,2.91638]
[1721168626291,0.09163038,3429.0,3428.8,2.91645]
[1721168626787,0.60523671,3429.1,3428.9,2.91638]
[1721168627162,0.60523671,3429.2,3428.7,2.91648]
[1721168627362,0.69685345,3429.1,3428.3,13.2037]
[1721168627561,0.60523671,3429.0,3428.5,2.91672]
[1721168627768,0.69685345,3428.9,3428.5,2.91672]
[1721168627947,0.60523671,3428.9,3428.3,10.28682]
[1721168628171,0.09164698,3428.8,3428.4,2.9168]
[1721168628373,0.60523671,3428.9,3428.5,2.9167]
[1721168628792,0.60523671,3428.9,3428.3,10.28682]
[1721168628959,0.60523671,3428.9,3428.5,2.91667]
[1721168630091,0.60523671,3428.9,3428.6,2.91664]
[1721168630289,0.60523671,3429.1,3428.8,2.91647]
[1721168630489,0.09161045,3429.0,3428.8,2.91647]
[1721168630667,0.60523671,3429.1,3428.9,2.91638]
[1721168631279,0.60523671,3429.2,3428.9,2.91638]
[1721168631599,0.09157793,3429.1,3428.9,2.91638]
[1721168631775,0.69681871,3429.1,3428.9,2.91638]
[1721168631976,0.60523671,3429.1,3428.9,2.91638]
[1721168632721,0.60523671,3429.2,3428.9,2.91638]
[1721168632927,0.09157523,3429.1,3428.9,2.91638]
[1721168633227,1.46918223,3429.2,3428.9,2.91638]
[1721168633530,0.69680797,3429.1,3428.9,2.91638]
[1721168633687,0.69680797,3429.0,3428.9,2.91638]
[1721168633882,0.0916065,3429.0,3428.9,2.91638]
[1721168634088,0.60523671,3429.1,3428.9,2.91638]
[1721168634486,1.46918223,3429.2,3428.9,2.91638]
[1721168634682,1.46918223,3429.2,3428.8,2.91647]
[1721168634683,1.23451877,3429.1,3428.8,2.91642]
[1721168634927,0.09157833,3429.0,3428.8,5.83282]
[1721168635087,0.69681504,3429.0,3428.8,5.83282]
[1721168635287,0.60523671,3429.0,3428.6,2.9166]
[1721168635524,0.60523671,3429.0,3428.4,2.91676]
[1721168635525,0.60523671,3428.8,3428.4,2.91676]
[1721168635819,0.69689429,3428.7,3428.4,2.91676]
[1721168636025,0.60523671,3428.5,3428.3,7.37]
[1721168636533,3.52188671,3428.6,3428.3,7.37]
[1721168636736,0.60523671,3428.6,3428.3,7.37]
[1721168636882,0.48611313,3428.5,3428.3,7.37]
[1721168638043,1.18303287,3428.5,3428.3,7.37]
[1721168638189,1.09134984,3428.5,3428.3,7.37]
[1721168638386,1.09134984,3428.5,3428.0,2.91714]
[1721168639239,0.48611313,3428.5,3428.1,2.91705]
[1721168639442,0.60523671,3428.6,3428.1,2.91705]
[1721168639606,0.60523671,3428.9,3428.5,2.91672]
[1721168640094,0.60523671,3429.0,3428.5,2.91672]
[1721168640300,0.09159755,3428.9,3428.5,2.91672]
[1721168640506,0.60523671,3429.0,3428.6,2.91663]
[1721168640733,0.09159559,3428.9,3428.6,2.91663]
[1721168640914,0.75208274,3428.9,3428.6,2.91663]
[1721168641119,0.09161959,3428.8,3428.3,2.91685]
[1721168641424,0.6968563,3428.8,3428.4,2.91676]
[1721168641625,0.60523671,3428.8,3428.4,2.91676]
[1721168641828,0.09167526,3428.7,3428.2,2.9169]
[1721168642032,1.12337716,3428.8,3428.2,2.9169]
[1721168642239,0.69692798,3428.7,3428.2,2.9169]
[1721168642542,0.51814045,3428.8,3428.2,2.9169]
[1721168642543,0.69692798,3428.6,3428.3,2.91688]
[1721168642697,0.60523671,3428.6,3428.5,2.91672]
[1721168642896,0.60523671,3428.7,3428.5,2.91672]
[1721168643141,0.60523671,3428.9,3428.5,2.91672]
[1721168643437,0.69692997,3428.8,3428.5,2.91672]
[1721168643600,0.60523671,3428.8,3428.5,2.91672]
[1721168644128,0.09170983,3428.7,3428.5,2.91672]
[1721168644312,0.60523671,3428.7,3428.5,2.91672]
[1721168644513,0.60523671,3428.7,3428.3,2.91682]
[1721168644735,0.09172356,3428.6,3428.3,2.91682]
[1721168644924,0.60523671,3428.6,3428.3,2.91682]
[1721168645088,0.09174008,3428.5,3428.3,2.91682]
[1721168645290,0.60523671,3428.6,3428.4,2.91679]
[1721168645537,0.09175264,3428.5,3428.1,2.91703]
[1721168645719,0.60444174,3428.4,3428.1,2.91703]
[1721168645922,0.60444174,3428.5,3428.1,2.91703]
[1721168646103,0.69622529,3428.5,3428.2,2.91697]
[1721168646437,0.60444174,3428.5,3428.2,2.91691]
[1721168646646,0.60444174,3428.5,3428.4,2.91681]
[1721168647154,0.60444174,3428.6,3428.5,2.91672]
[1721168647457,0.60444174,3429.0,3428.9,2.91633]
[1721168647619,0.69613925,3429.0,3428.9,2.91633]
[1721168648316,0.60444174,3429.0,3428.9,2.91633]
[1721168648520,0.69613925,3429.0,3428.9,2.91633]
[1721168649330,0.69613925,3429.0,3428.8,2.91645]
[1721168649632,0.69613925,3429.0,3428.9,2.91638]
[1721168650331,0.60444174,3429.0,3428.9,2.91638]
[1721168650493,0.09169751,3429.0,3428.9,5.83276]
[1721168650694,0.60479333,3429.1,3429.0,5.8326]
[1721168650996,0.09169376,3429.1,3429.0,5.8326]
[1721168651343,0.60479333,3429.2,3429.1,5.83242]
[1721168651494,0.90785507,3429.4,3429.1,2.91621]
[1721168651838,0.69651405,3429.3,3429.2,2.91613]
[1721168652141,0.09164855,3429.3,3429.2,2.91613]
[1721168652296,0.90785507,3429.4,3429.2,2.91613]
[1721168652495,0.69659473,3429.3,3429.2,2.91613]
[1721168653333,0.09164855,3429.3,3429.2,2.91613]
[1721168653793,0.99950362,3429.3,3429.2,2.91613]
[1721168653996,0.99950362,3429.3,3429.2,6.5029876]
[1721168654313,0.09168785,3429.3,3429.2,0.6707276]
[1721168654621,0.60523894,3429.4,3429.3,5.83208]
[1721168654927,0.90785507,3429.5,3429.4,2.91596]
[1721168655294,1.21047343,3429.6,3429.5,2.91587]
[1721168655494,1.00014793,3429.6,3429.5,2.91587]
[1721168655742,1.00014793,3429.6,3429.5,5.83174]
[1721168655941,0.09172228,3429.6,3429.5,5.83174]
[1721168656101,0.69737325,3429.6,3429.5,5.83174]
[1721168656292,0.90842565,3429.7,3429.6,5.83158]
[1721168656634,1.00012254,3429.7,3429.6,5.83158]
[1721168657136,0.90842565,3429.7,3429.6,5.83158]
[1721168657499,0.09169689,3429.7,3429.6,5.83158]
[1721168657700,0.60577605,3429.7,3429.6,6.706339]
[1721168657901,0.60577605,3429.8,3429.7,5.8314]
[1721168658128,0.69739605,3429.8,3429.7,5.8314]
[1721168658356,0.60577605,3429.9,3429.8,5.83124]
[1721168658528,0.90842565,3430.0,3429.9,5.83106]
[1721168658707,1.00002783,3430.0,3429.9,5.83106]
[1721168658907,1.51457391,3430.3,3429.9,5.83106]
[1721168658908,0.90842565,3430.1,3430.0,5.8309]
[1721168659105,0.6057869,3430.4,3430.1,2.91536]
[1721168659406,0.60576366,3430.7,3430.4,2.91511]
[1721168659602,0.09141105,3430.6,3430.5,5.83004]
[1721168660026,0.60576366,3430.7,3430.6,2.91494]
[1721168660537,0.60576366,3430.8,3430.7,2.91485]
[1721168660715,0.09132486,3430.8,3430.7,2.91485]
[1721168660918,0.99975051,3430.8,3430.7,2.91485]
[1721168661220,0.90842565,3430.8,3430.7,2.91485]
[1721168661417,0.99978855,3430.8,3430.7,2.91485]
[1721168661725,0.0913629,3430.8,3430.7,2.91485]
[1721168662455,0.60430143,3430.8,3430.7,2.91485]
[1721168662651,0.69566433,3430.8,3430.7,2.91485]
[1721168663315,0.69564508,3430.8,3430.7,2.91485]
[1721168663527,0.60428218,3430.9,3430.8,2.91477]
[1721168663831,0.09125591,3430.9,3430.8,2.91477]
[1721168664028,0.09125591,3430.9,3430.8,3.49773]
[1721168664359,1.51204101,3431.5,3430.8,3.49773]
[1721168664360,0.60428218,3431.4,3431.3,2.91434]
[1721168664566,1.21047343,3431.8,3430.8,3.49773]
[1721168664567,0.60428218,3431.7,3431.4,2.91423]
[1721168665540,0.60428218,3431.7,3431.4,5.82842]
[1721168665749,0.60428218,3431.7,3431.6,2.91409]
[1721168665950,0.60428218,3431.7,3431.6,5.82818]
[1721168667557,0.60428218,3431.7,3431.6,2.91409]
[1721168669159,0.60428218,3431.7,3431.6,5.82818]
[1721168670888,0.60428218,3432.1,3431.9,2.91383]
[1721168671047,0.60428218,3432.2,3431.9,2.91383]
[1721168671452,2.97008218,3432.4,3431.9,2.91383]
[1721168671751,0.4787414,3432.3,3431.9,2.91383]
[1721168671946,0.38785078,3432.3,3431.9,2.91383]
[1721168672194,0.38785078,3432.3,3431.9,5.82758]
[1721168673298,0.38785078,3432.3,3432.0,2.91372]
[1721168673461,2.3658,3432.4,3432.0,2.91372]
[1721168673992,2.3658,3432.4,3431.3,7.37]
[1721168674201,2.91364,3432.2,3431.3,7.37]
[1721168674361,3.51789218,3432.2,3431.4,2.91425]
[1721168674686,2.91368,3432.1,3431.4,2.91425]
[1721168674889,0.89265722,3432.0,3431.4,2.91425]
[1721168676162,2.3515,3431.9,3431.3,7.37]
[1721168676357,2.3515,3431.9,3431.4,2.91423]
[1721168677277,2.3515,3431.9,3431.3,7.37]
[1721168677482,0.61579072,3431.8,3431.3,7.37]
[1721168677900,2.91414,3431.6,3431.3,7.37]
[1721168678396,3.52979072,3431.8,3431.3,7.37]
[1721168678603,2.914,3431.7,3431.3,7.37]
[1721168678896,2.91409,3431.6,3431.3,7.37]
[1721168679106,0.64438807,3431.5,3431.3,7.37]
[1721168679268,2.91409,3431.6,3431.3,7.37]
[1721168680002,2.91409,3431.6,3431.0,2.91459]
[1721168680869,2.91417,3431.5,3430.8,2.91471]
[1721168682425,2.3848,3431.2,3430.6,2.91493]
[1721168682612,2.3848,3431.2,3430.5,7.37]
[1721168682613,0.821347,3431.1,3430.5,10.28499]
[1721168682906,5.29923,3431.2,3430.6,2.91492]
[1721168683819,0.60428218,3431.6,3430.5,7.37]
[1721168683987,3.0,3431.6,3431.0,2.91459]
[1721168684172,0.94505829,3431.6,3431.0,2.91459]
[1721168684371,3.94505829,3431.6,3431.0,2.91459]
[1721168685377,3.0,3431.6,3431.0,2.91453]
[1721168685581,2.91406,3431.7,3431.1,2.9145]
[1721168685778,3.0,3431.6,3431.1,2.9145]
[1721168685999,0.60428218,3432.0,3431.3,2.91431]
[1721168686322,2.3165,3432.1,3431.5,2.91416]
[1721168686479,2.3165,3432.1,3431.6,2.91408]
[1721168686480,1.42632141,3432.1,3431.6,2.91408]
[1721168686804,2.9135,3432.3,3431.6,2.91408]
[1721168687371,3.0,3432.2,3431.6,2.91408]
[1721168687610,3.0,3432.2,3431.4,2.91419]
[1721168688208,3.0,3432.2,3431.5,2.91415]
[1721168688396,3.0,3432.2,3431.6,2.91406]
[1721168688936,2.91367,3432.1,3431.2,2.91437]
[1721168689142,2.91387,3431.9,3431.2,2.91437]
[1721168691144,2.91387,3431.9,3431.3,2.91433]
[1721168691840,3.51795218,3432.1,3431.4,2.91422]
[1721168692141,3.0,3432.0,3431.4,2.91422]
[1721168692501,3.60428218,3432.0,3431.4,2.91422]
[1721168692697,0.69529549,3431.9,3431.4,2.91422]
[1721168692995,0.60428218,3431.9,3431.4,2.91422]
[1721168693917,0.60428218,3431.9,3431.2,2.91437]
[1721168694118,0.09103778,3431.8,3431.2,2.91437]
[1721168694313,1.8065148,3431.9,3431.2,2.91437]
[1721168694525,0.6953566,3431.8,3431.3,2.91434]
[1721168694842,0.09108716,3431.7,3431.3,2.91434]
[1721168695161,5.24347,3431.7,3431.1,7.37]
[1721168695335,0.4811472,3431.6,3431.1,7.37]
[1721168695543,1.1765813,3431.6,3431.0,2.91459]
[1721168695714,0.69544092,3431.5,3430.8,2.91474]
[1721168695922,0.60428218,3431.5,3430.9,2.91468]
[1721168696214,0.09116177,3431.4,3430.9,2.91468]
[1721168696420,0.09121185,3431.3,3430.9,2.91468]
[1721168696625,0.60428218,3431.4,3430.9,2.91468]
[1721168696879,0.69548729,3431.3,3430.9,2.91468]
[1721168697012,0.60428218,3431.4,3430.9,2.91468]
[1721168697353,0.69548744,3431.3,3430.9,2.91468]
[1721168697512,0.69548744,3431.2,3430.9,2.91468]
[1721168697848,0.60428218,3431.2,3430.9,2.91468]
[1721168698147,0.60428218,3431.2,3430.5,2.91495]
[1721168698353,0.60428218,3431.2,3430.1,2.9153]
[1721168698354,2.91469,3430.9,3430.1,2.9153]
[1721168698551,2.91469,3430.9,3430.0,7.37]
[1721168698552,0.60428218,3430.6,3430.0,2.91543]
[1721168698851,0.60428218,3430.6,3429.6,8.244759]
[1721168698852,3.51961218,3430.2,3429.6,10.28578]
[1721168699146,0.60428218,3430.0,3429.6,2.91578]
[1721168699326,0.69554983,3429.9,3429.6,2.91578]
[1721168699527,0.09126765,3429.8,3429.6,2.91578]
[1721168699727,0.60428218,3429.9,3429.6,2.91578]
[1721168700049,0.69580642,3429.8,3429.6,2.91578]
[1721168700249,0.60428218,3429.9,3429.6,2.91578]
[1721168700573,0.60428218,3429.8,3429.1,7.37]
[1721168700734,0.69581271,3429.7,3429.1,8.107]
[1721168700915,0.69581271,3429.6,3429.2,2.91608]
[1721168701119,0.60428218,3429.6,3429.2,2.91608]
[1721168701416,0.60428218,3429.7,3429.4,2.91589]
[1721168701613,0.90842565,3429.8,3429.5,2.91587]
[1721168701614,0.69583981,3429.6,3429.5,2.91587]
[1721168701827,0.60428218,3430.0,3429.6,2.4431]
[1721168702027,1.51163518,3430.4,3430.1,2.91536]
[1721168702028,0.60428218,3430.4,3430.1,2.91536]
[1721168702230,0.60428218,3430.4,3430.2,2.91521]
[1721168702450,0.60428218,3430.5,3429.7,3.46566]
[1721168702752,0.69570336,3430.4,3430.1,2.91528]
[1721168703049,0.09143941,3430.3,3430.2,2.91528]
[1721168703252,0.60428218,3430.5,3430.4,2.91511]
[1721168703653,0.09141858,3430.5,3430.2,2.91522]
[1721168703817,0.60496535,3430.3,3430.0,2.91538]
[1721168704017,0.60496535,3430.3,3429.8,7.37]
[1721168704018,0.60496535,3430.3,3430.2,2.91528]
[1721168704213,0.90842565,3430.5,3430.4,2.91511]
[1721168704214,0.60496535,3430.5,3430.4,2.91511]
[1721168704458,0.69640749,3430.5,3430.4,2.91511]
[1721168705330,0.69640749,3430.5,3430.4,3.49812]
[1721168705331,0.09141407,3430.5,3430.4,3.49812]
[1721168705540,0.60496535,3430.5,3430.4,2.91509]
[1721168705749,0.6964683,3430.5,3430.4,2.91509]
[1721168706117,0.09141407,3430.5,3430.4,2.91509]
[1721168706668,0.60505423,3430.5,3430.4,2.91509]
[1721168706822,0.09141407,3430.5,3430.4,2.91509]
[1721168707023,0.6964683,3430.5,3430.4,2.91509]
[1721168707224,0.60505423,3430.6,3430.4,2.91509]
[1721168707424,0.69648977,3430.5,3430.4,2.91509]
[1721168707965,0.60505423,3430.6,3430.5,2.91502]
[1721168708454,0.69646877,3430.6,3430.5,2.91502]
[1721168708917,0.90842565,3430.6,3430.2,2.91523]
[1721168709258,0.60503819,3430.3,3430.2,2.91523]
[1721168709551,0.60503819,3430.3,3430.1,2.9153]
[1721168709552,0.90842565,3430.5,3430.3,2.91519]
[1721168709852,0.0914624,3430.4,3430.3,2.91519]
[1721168710052,0.69642744,3430.4,3430.3,2.91519]
[1721168710220,0.0914624,3430.4,3430.3,2.91519]
[1721168710426,0.09145286,3430.4,3430.3,2.91519]
[1721168710622,0.69640811,3430.4,3430.3,2.91519]
[1721168711934,0.60495525,3430.4,3430.3,6.121899]
[1721168712142,0.60495525,3430.7,3430.5,2.91497]
[1721168712456,0.60495525,3430.7,3430.3,3.206679]
[1721168712457,0.69636245,3430.6,3430.4,2.91504]
[1721168712617,0.0914072,3430.5,3430.4,2.91504]
[1721168712822,0.69640342,3430.6,3430.4,2.91504]
[1721168713135,0.69640342,3430.5,3430.2,2.91527]
[1721168713333,0.0914072,3430.4,3430.2,2.91527]
[1721168713519,0.60499622,3430.4,3430.2,2.91527]
[1721168713721,0.60499622,3430.4,3429.8,7.37]
[1721168713722,0.60499622,3430.3,3429.8,7.37]
[1721168713929,0.60499622,3430.1,3429.9,2.91548]
[1721168714142,0.60499622,3430.2,3429.9,2.91548]
[1721168714346,0.69650143,3430.1,3429.9,2.91547]
[1721168714551,0.60499622,3430.1,3429.8,10.28558]
[1721168714753,0.60499622,3430.1,3429.8,7.37]
[1721168714959,0.90842565,3429.9,3429.8,7.37]
[1721168715130,0.99993553,3429.9,3429.8,7.37]
[1721168715549,1.21047343,3429.9,3429.8,7.37]
[1721168715728,0.50628072,3429.9,3429.8,7.37]
[1721168716129,0.90714373,3429.9,3429.8,7.37]
[1721168716539,0.99868703,3429.9,3429.8,7.37]
[1721168716734,0.90714373,3429.9,3429.8,7.37]
[1721168717239,0.99868703,3429.9,3429.8,7.37]
[1721168717447,0.90714373,3429.9,3429.8,7.37]
[1721168717658,0.99868703,3429.9,3429.8,7.37]
[1721168717837,0.66361571,3429.9,3429.8,7.37]
[1721168718160,1.16986272,3429.9,3429.8,7.37]
[1721168718350,0.9983702,3429.9,3429.8,7.37]
[1721168718536,0.50622983,3429.9,3429.3,2.91598]
[1721168718737,0.60459746,3429.6,3429.3,2.91598]
[1721168718944,0.60459746,3429.7,3429.3,2.91598]
[1721168719144,0.60459746,3429.7,3429.2,2.91611]
[1721168719145,0.60459746,3429.5,3429.2,2.91611]